fUSD/lending_fUSD_20250105
["ID","MTS","AMOUNT","RATE_DAILY","PERIOD"]
[347765538,1736095887502,-500.0,0.00012054,2]
[347765539,1736095887512,-500.0,0.00012054,2]
[347765540,1736095887521,-500.0,0.00012054,2]
[347765541,1736095887531,-611.9,0.00012054,2]
[347765542,1736095887540,-500.0,0.00012054,2]
[347765543,1736095887550,-2757.49,0.00012054,2]
[347765544,1736095887561,-453.55881184,0.00012054,2]
[347765545,1736095887570,-941.3,0.00012054,2]
[347765546,1736095887579,-500.0,0.00012054,2]
[347765547,1736095887589,-1398.91,0.00012054,2]
[347765548,1736095887598,-816.85,0.00012054,2]
[347765549,1736095887608,-500.0,0.00012054,2]
[347765550,1736095887617,-500.0,0.00012054,2]
[347765551,1736095887626,-1869.6,0.00012054,2]
[347765552,1736095887636,-1890.04,0.00012054,2]
[347765553,1736095887647,-500.0,0.00012054,2]
[347765554,1736095887656,-1724.92,0.00012054,2]
[347765555,1736095887668,-958.63,0.00012054,2]
[347765556,1736095887679,-2593.99,0.00012054,2]
[347765557,1736095887692,-713.17,0.00012054,2]
[347765558,1736095887702,-3988.32,0.00012054,2]
[347765559,1736095887712,-555.29,0.00012054,2]
[347765560,1736095887721,-500.0,0.00012054,2]
[347765561,1736095887731,-589.98,0.00012054,2]
[347765562,1736095887740,-2839.12,0.00012054,2]
[347765563,1736095887751,-1013.43,0.00012054,2]
[347765564,1736095887761,-707.78,0.00012054,2]
[347765565,1736095887771,-500.0,0.00012054,2]
[347765566,1736095887781,-3292.79,0.00012054,2]
[347765567,1736095887791,-973.9,0.00012054,2]
[347765568,1736095887800,-1219.44,0.00012054,2]
[347765569,1736095887810,-500.0,0.00012054,2]
[347765570,1736095887822,-2047.69,0.00012054,2]
[347765571,1736095887832,-950.22,0.00012054,2]
[347765572,1736095887841,-841.68,0.00012054,2]
[347765573,1736095887851,-1957.92,0.00012054,2]
[347765574,1736095887861,-1161.3,0.00012054,2]
[347765575,1736095887871,-1087.91560742,0.00012054,2]
[347765576,1736095887880,-45211.53,0.00012055,2]
[347765577,1736095887891,-150.0,0.00012057,2]
[347765578,1736095887901,-150.0,0.0001206,2]
[347765579,1736095887911,-150.0,0.00012067,2]
[347765580,1736095887920,-150.0,0.00012068,2]
[347765581,1736095887930,-150.0,0.00012069,2]
[347765582,1736095887941,-1500.0,0.00012069,2]
[347765583,1736095887950,-150.0,0.0001207,2]
[347765584,1736095887960,-150.0,0.0001208,2]
[347765585,1736095887970,-150.0,0.00012081,2]
[347765586,1736095887979,-174.377,0.00012083,2]
[347765587,1736095888206,-2588.811,0.00012083,2]
[347765588,1736095888216,-29999.99,0.00012087,2]
[347765589,1736095888226,-6693.81,0.00012087,2]
[347765590,1736095888237,-150.0,0.00012088,2]
[347765591,1736095888247,-10139.10217001,0.0001209,2]
[347765592,1736095888256,-150.0,0.00012099,2]
[347765593,1736095888266,-150.0,0.00012099,2]
[347765594,1736095888276,-4364.89061081,0.000121,2]
[347765595,1736095888287,-150.0,0.00012104,2]
[347765596,1736095888296,-1500.0,0.00012109,2]
[347765597,1736095888306,-150.0,0.00012109,2]
[347765598,1736095888316,-666.0,0.00012115,2]
[347765599,1736095888326,-1000.0,0.00012115,2]
[347765600,1736095888337,-150156.78580259,0.00012115,3]
[347765601,1736095888347,-150.0,0.00012115,2]
[347765602,1736095888358,-645562.04336978,0.00012116,2]
[347765603,1736095888367,-150.0,0.0001212,2]
[347765604,1736095888377,-150.0,0.00012122,2]
[347765605,1736095888388,-150.0,0.00012123,2]
[347765606,1736095888399,-150.0,0.00012124,2]
[347765607,1736095888410,-150.0,0.00012126,2]
[347765608,1736095888421,-1000.0,0.00012126,2]
[347765609,1736095888430,-469.46121299,0.00012126,2]
[347765610,1736095888442,-150.0,0.00012128,2]
[347765611,1736095888451,-150.0,0.00012128,2]
[347765612,1736095888462,-150.0,0.00012128,2]
[347765613,1736095888473,-150.0,0.00012128,2]
[347765614,1736095888485,-649.78083261,0.00012131,2]
[347765615,1736095888496,-150.0,0.00012131,2]
[347765616,1736095888505,-150.0,0.00012131,2]
[347765617,1736095888516,-150.0,0.00012132,2]
[347765618,1736095888526,-150.0,0.00012134,2]
[347765619,1736095888536,-150.0,0.00012135,2]
[347765620,1736095888547,-150.0,0.00012141,2]
[347765621,1736095888557,-150.0,0.00012143,2]
[347765622,1736095888567,-150.0,0.00012143,2]
[347765623,1736095888577,-150.0,0.00012144,2]
[347765624,1736095888587,-1000.0,0.00012144,2]
[347765625,1736095888596,-1000.0,0.00012144,2]
[347765626,1736095888607,-1000.0,0.00012144,2]
[347765627,1736095888617,-1000.0,0.00012144,2]
[347765628,1736095888627,-1000.0,0.00012144,2]
[347765629,1736095888637,-1000.0,0.00012144,2]
[347765630,1736095888647,-1000.0,0.00012144,2]
[347765631,1736095888656,-1000.0,0.00012144,2]
[347765632,1736095888667,-1000.0,0.00012144,2]
[347765633,1736095888677,-1000.0,0.00012144,2]
[347765634,1736095888688,-150.0,0.00012145,2]
[347765635,1736095888697,-150.0,0.00012146,2]
[347765636,1736095888707,-150.0,0.00012146,2]
[347765637,1736095888717,-150.0,0.00012159,2]
[347765638,1736095888727,-150.0,0.00012159,2]
[347765639,1736095888737,-150.0,0.0001216,2]
[347765640,1736095888747,-150.0,0.00012167,2]
[347765641,1736095888757,-150.0,0.00012168,2]
[347765642,1736095888767,-150.0,0.00012169,2]
[347765643,1736095888777,-150.0,0.00012173,2]
[347765644,1736095888787,-37555.66861359,0.00012179,2]
[347765645,1736095888799,-1500.0,0.00012179,2]
[347765646,1736095888810,-150.0,0.00012191,2]
[347765647,1736095888821,-150.0,0.00012196,2]
[347765648,1736095888831,-150.0,0.00012199,2]
[347765649,1736095888841,-150.0,0.00012199,2]
[347765650,1736095888851,-1255063.33270088,0.000122,2]
[347765651,1736095888861,-1036.57419862,0.000122,2]
[347765652,1736095888872,-341.01901886,0.000122,2]
[347765653,1736095888882,-500.0,0.00012202,2]
[347765654,1736095888893,-2000.0,0.00012202,2]
[347765655,1736095888903,-500.0,0.00012202,2]
[347765656,1736095888913,-150.0,0.00012205,2]
[347765657,1736095888923,-150.0,0.00012205,2]
[347765658,1736095888934,-150.0,0.00012206,2]
[347765659,1736095888944,-150.0,0.00012208,2]
[347765660,1736095888954,-150.0,0.00012209,2]
[347765661,1736095888963,-150.0,0.0001221,2]
[347765662,1736095888973,-150.0,0.00012211,2]
[347765663,1736095888983,-150.0,0.00012221,2]
[347765664,1736095888993,-150.0,0.00012221,2]
[347765665,1736095889002,-150.0,0.00012225,2]
[347765666,1736095889016,-150.0,0.00012225,2]
[347765667,1736095889026,-150.0,0.00012225,2]
[347765668,1736095889037,-150.0,0.00012226,2]
[347765669,1736095889047,-150.0,0.00012226,2]
[347765670,1736095889058,-150.0,0.0001223,2]
[347765671,1736095889067,-300.0,0.00012237,2]
[347765672,1736095889078,-150.0,0.00012237,2]
[347765673,1736095889088,-150.0,0.0001224,2]
[347765674,1736095889098,-150.0,0.00012241,2]
[347765675,1736095889109,-150.0,0.00012241,2]
[347765676,1736095889118,-150.0,0.00012249,2]
[347765677,1736095889127,-103352.31790406,0.0001225,2]
[347765678,1736095889139,-150.0,0.0001225,2]
[347765679,1736095889148,-10139.10217001,0.00012252,2]
[347765680,1736095889159,-150.0,0.00012253,2]
[347765681,1736095889170,-150.0,0.00012256,2]
[347765682,1736095889180,-150.0,0.00012257,2]
[347765683,1736095889191,-150.0,0.00012259,2]
[347765684,1736095889204,-150.0,0.00012259,2]
[347765685,1736095889214,-150.0,0.00012259,2]
[347765686,1736095889224,-150.0,0.00012265,2]
[347765687,1736095889234,-150.0,0.00012269,2]
[347765688,1736095889245,-1500.0,0.0001227,2]
[347765689,1736095889256,-4402.0,0.00012274,2]
[347765690,1736095889265,-49312.0,0.00012274,2]
[347765691,1736095889275,-150.0,0.00012274,2]
[347765692,1736095889284,-150.0,0.00012274,2]
[347765693,1736095889294,-150.0,0.00012275,2]
[347765694,1736095889305,-150.0,0.0001228,2]
[347765695,1736095889316,-150.0,0.00012288,2]
[347765696,1736095889326,-150.0,0.00012288,2]
[347765697,1736095889335,-150.0,0.0001229,2]
[347765698,1736095889345,-150.0,0.00012292,2]
[347765699,1736095889354,-150.0,0.00012294,2]
[347765700,1736095889364,-150.0,0.00012295,2]
[347765701,1736095889375,-150.0,0.00012297,2]
[347765702,1736095889387,-20623.83048494,0.00012299,2]
[347765703,1736095889397,-1000.0,0.00012299,2]
[347765704,1736095889409,-1000.0,0.00012299,2]
[347765705,1736095889420,-150.0,0.00012299,2]
[347765706,1736095889430,-1501.3816768,0.00012299,2]
[347765707,1736095889440,-739.7928761,0.00012299,2]
[347765708,1736095889450,-5979.1013156,0.00012299,2]
[347765709,1736095889460,-2957.5608301,0.00012299,2]
[347765710,1736095889470,-1245158.01432073,0.000123,2]
[347765711,1736095889480,-5527485.62920084,0.000123,2]
[347765712,1736095889820,-1214.18692776,0.000123,2]
[347765713,1736095889832,-34840.691785,0.000123,2]
[347765714,1736095889843,-632.05486299,0.000123,2]
[347765715,1736095889862,-67363.09600229,0.000123,2]
[347765716,1736095889873,-435.68171857,0.000123,2]
[347765717,1736095889892,-19686.81040767,0.000123,2]
[347765718,1736095889903,-7409.08422806,0.000123,2]
[347765719,1736095889914,-1019.31016191,0.000123,2]
[347765720,1736095889925,-3359.71700903,0.000123,2]
[347765721,1736095889936,-829.76753124,0.000123,2]
[347765722,1736095889953,-717.3833949,0.000123,2]
[347765723,1736095889964,-480.58,0.000123,2]
[347765724,1736095889975,-41811.24302048,0.000123,2]
[347765725,1736095889995,-500.0,9.315e-05,2]
[347765726,1736095890004,-2663.74223281,0.000123,2]
[347765727,1736095890015,-1269.99759,0.000123,2]
[347765728,1736095890027,-2388.6000052,0.000123,2]
[347765729,1736095890037,-288.9699825,0.000123,2]
[347765730,1736095890413,-500.0,8.219e-05,2]
[347765731,1736095890423,-500.0,8.489e-05,2]
[347765732,1736095890433,-500.0,8.49e-05,2]
[347765733,1736095890442,-500.0,8.493e-05,2]
[347765734,1736095890452,-500.0,8.764e-05,2]
[347765735,1736095890461,-555.47,8.767e-05,2]
[347765736,1736095890470,-500.0,8.767e-05,2]
[347765737,1736095890478,-500.0,9.038e-05,2]
[347765738,1736095890488,-555.47,9.041e-05,2]
[347765739,1736095890497,-555.47,9.315e-05,2]
[347765740,1736095890506,-500.0,9.589e-05,2]
[347765741,1736095890515,-500.0,9.863e-05,2]
[347765742,1736095890525,-500.0,0.00010136,2]
[347765743,1736095890534,-203500.41914079,0.000123,2]
[347765744,1736095890554,-3622.39033404,0.000123,2]
[347765745,1736095890564,-911.4085436,0.000123,2]
[347765746,1736095890618,-500.0,8.763e-05,2]
[347765747,1736095890628,-555.47,9.589e-05,2]
[347765748,1736095890638,-3916.27782959,0.000123,2]
[347765749,1736095890651,-3907.79298001,0.000123,2]
[347765750,1736095890661,-5663.00549854,0.000123,2]
[347765751,1736095890673,-9381.119514,0.000123,2]
[347765752,1736095890685,-1031.16056318,0.000123,2]
[347765753,1736095890697,-13201.90983459,0.000123,2]
[347765754,1736095890708,-2876.03325125,0.000123,2]
[347765755,1736095890744,-500.0,9.037e-05,2]
[347765756,1736095890756,-300.89909356,9.041e-05,2]
[347765757,1736095891427,-500.0,8.489e-05,2]
[347765758,1736095891437,-207.3898016,8.492e-05,2]
[347765759,1736095891449,-292.6101984,8.492e-05,2]
[347765760,1736095891459,-500.0,8.763e-05,2]
[347765761,1736095891469,-500.0,8.766e-05,2]
[347765762,1736095891479,-500.0,9.037e-05,2]
[347765763,1736095891489,-593.15,9.04e-05,2]
[347765764,1736095891499,-199.10090644,9.041e-05,2]
[347765765,1736095891509,-500.0,9.311e-05,2]
[347765766,1736095891519,-171.84,9.311e-05,2]
[347765767,1736095891529,-500.0,9.315e-05,2]
[347765768,1736095891538,-500.0,9.585e-05,2]
[347765769,1736095891549,-500.0,9.589e-05,2]
[347765770,1736095891559,-1103.0,9.768e-05,2]
[347765771,1736095891569,-500.0,9.859e-05,2]
[347765772,1736095891580,-555.47,9.863e-05,2]
[347765773,1736095891589,-500.0,9.863e-05,2]
[347765774,1736095891599,-500.0,0.00010133,2]
[347765775,1736095891608,-500.0,0.00010136,2]
[347765776,1736095891618,-555.47,0.00010136,2]
[347765777,1736095891628,-189.85943065,0.00010407,2]
[347765778,1736095891638,-500.0,0.0001041,2]
[347765779,1736095891647,-187.89424039,0.0001041,2]
[347765780,1736095891659,-312.10575961,0.0001041,2]
[347765781,1736095891669,-555.47,0.0001041,2]
[347765782,1736095891679,-500.0,0.00010684,2]
[347765783,1736095891689,-500.0,0.00010684,2]
[347765784,1736095891699,-500.0,0.00010958,2]
[347765785,1736095891708,-500.0,0.00010958,2]
[347765786,1736095891718,-500.0,0.00011232,2]
[347765787,1736095891728,-150.68,0.00011232,2]
[347765788,1736095891737,-500.0,0.00011506,2]
[347765789,1736095891747,-481.74802022,0.00011678,2]
[347765790,1736095891756,-55127.26977398,0.000123,2]
[347765791,1736095891775,-623.66,0.0001178,2]
[347765792,1736095891784,-4.46188707,0.000123,2]
[347765793,1736095891797,-187405.64220867,0.000123,2]
[347765794,1736095891809,-1648.35,0.000123,2]
[347765795,1736095891825,-754.59,0.000123,2]
[347765796,1736095891844,-979.19,0.00010658,2]
[347765797,1736095891855,-10606.30986,0.000123,2]
[347765798,1736095891866,-634.84742392,0.000123,2]
[347765799,1736095891879,-3904.6364026,0.000123,2]
[347765800,1736095891891,-646.12775899,0.000123,2]
[347765801,1736095891910,-647.23528727,0.000123,2]
[347765802,1736095892204,-324.5319,8.219e-05,2]
[347765803,1736095892216,-175.4681,8.219e-05,2]
[347765804,1736095892226,-380.42,8.294e-05,2]
[347765805,1736095892235,-330.77112838,8.489e-05,2]
[347765806,1736095892246,-169.22887162,8.489e-05,2]
[347765807,1736095892256,-230.55694689,8.493e-05,2]
[347765808,1736095892275,-269.44305311,8.493e-05,2]
[347765809,1736095892285,-500.0,8.763e-05,2]
[347765810,1736095892294,-500.0,8.767e-05,2]
[347765811,1736095892304,-380.42,9.331e-05,2]
[347765812,1736095892314,-380.42,0.00010368,2]
[347765813,1736095892324,-1211.16579362,0.0001047,2]
[347765814,1736095892336,-288.83420638,0.0001047,2]
[347765815,1736095892345,-458.77691379,0.00010684,2]
[347765816,1736095892357,-96.69308621,0.00010684,2]
[347765817,1736095892367,-1500.0,0.00010817,2]
[347765818,1736095892376,-352.47452144,0.00010958,2]
[347765819,1736095892388,-202.99547856,0.00010958,2]
[347765820,1736095892397,-380.42,0.00011405,2]
[347765821,1736095892407,-1361.99021576,0.0001168,2]
[347765822,1736095892417,-20907.8108863,0.000123,2]
[347765823,1736095892437,-500.0,9.037e-05,2]
[347765824,1736095892446,-1755488.058829,0.000123,2]
[347765825,1736095892460,-111911.38458703,0.000123,2]
[347765826,1736095892483,-341424.23082343,0.000123,2]
[347765827,1736095892494,-904.12652504,0.000123,2]
[347765828,1736095892506,-3805.83049162,0.000123,2]
[347765829,1736095892530,-1500.0,0.00011215,2]
[347765830,1736095892539,-1500.0,0.00012157,2]
[347765831,1736095892550,-2699.28526175,0.000123,2]
[347765832,1736095892562,-6769.25669112,0.000123,2]
[347765836,1736096620798,500.0,0.0002,120]
[347765837,1736096653340,500.0,1.229e-05,2]
[347765894,1736097032056,-10861.3,7.784e-05,2]
[347765895,1736097032065,-220.83,7.854e-05,2]
[347765896,1736097032074,-250.0,7.906e-05,2]
[347765897,1736097032083,-250.0,8.022e-05,2]
[347765898,1736097032092,-915.45462686,8.218e-05,2]
[347765899,1736097032101,-8498.45550128,8.218e-05,2]
[347765900,1736097032111,-932.16,8.219e-05,2]
[347765901,1736097032120,-2115.73,8.219e-05,2]
[347765902,1736097032130,-500.0,8.219e-05,2]
[347765903,1736097032139,-698.78,8.219e-05,2]
[347765904,1736097032149,-1025.34,8.219e-05,2]
[347765905,1736097032158,-1102.24,8.219e-05,2]
[347765906,1736097032170,-1679.0,8.219e-05,2]
[347765907,1736097032181,-395.04,8.219e-05,2]
[347765908,1736097032191,-1000.0,8.219e-05,2]
[347765909,1736097032200,-602.76,8.219e-05,2]
[347765910,1736097032210,-664.85,8.219e-05,2]
[347765911,1736097032220,-500.0,8.219e-05,2]
[347765912,1736097032230,-2237.39,8.219e-05,2]
[347765913,1736097032240,-1629.25,8.219e-05,2]
[347765914,1736097032250,-1920.27,8.219e-05,2]
[347765915,1736097032261,-5221.52,8.219e-05,2]
[347765916,1736097032272,-807.93,8.219e-05,2]
[347765917,1736097032281,-500.0,8.219e-05,2]
[347765918,1736097032291,-250.0,8.219e-05,2]
[347765919,1736097032300,-2149.39,8.219e-05,2]
[347765920,1736097032311,-1000.0,8.219e-05,2]
[347765921,1736097032320,-258.04,8.251e-05,2]
[347765922,1736097032330,-9948.0,8.252e-05,2]
[347765923,1736097032339,-553.05,8.489e-05,2]
[347765924,1736097032349,-500.0,8.489e-05,2]
[347765925,1736097032358,-500.0,8.489e-05,2]
[347765926,1736097032371,-500.0,8.489e-05,2]
[347765927,1736097032380,-558.34,8.489e-05,2]
[347765928,1736097032390,-500.0,8.489e-05,2]
[347765929,1736097032399,-500.0,8.489e-05,2]
[347765930,1736097032409,-500.0,8.489e-05,2]
[347765932,1736097032418,-500.0,8.489e-05,2]
[347765934,1736097032429,-500.0,8.489e-05,2]
[347765936,1736097032438,-500.0,8.489e-05,2]
[347765937,1736097032449,-500.0,8.489e-05,2]
[347765938,1736097032459,-500.0,8.489e-05,2]
[347765940,1736097032468,-557.49,8.489e-05,2]
[347765942,1736097032477,-500.0,8.489e-05,2]
[347765944,1736097032487,-500.0,8.489e-05,2]
[347765946,1736097032496,-500.0,8.489e-05,2]
[347765947,1736097032506,-500.0,8.489e-05,2]
[347765949,1736097032515,-500.0,8.489e-05,2]
[347765951,1736097032525,-500.0,8.489e-05,2]
[347765953,1736097032534,-500.0,8.489e-05,2]
[347765955,1736097032544,-500.0,8.489e-05,2]
[347765957,1736097032554,-500.0,8.489e-05,2]
[347765959,1736097032563,-500.0,8.489e-05,2]
[347765961,1736097032572,-500.0,8.489e-05,2]
[347765963,1736097032581,-500.0,8.489e-05,2]
[347765965,1736097032591,-700.88,8.489e-05,2]
[347765967,1736097032599,-556.79,8.489e-05,2]
[347765969,1736097032609,-502.01,8.489e-05,2]
[347765971,1736097032618,-500.0,8.489e-05,2]
[347765973,1736097032628,-500.0,8.489e-05,2]
[347765975,1736097032637,-500.0,8.489e-05,2]
[347765977,1736097032646,-500.0,8.489e-05,2]
[347765980,1736097032655,-500.0,8.489e-05,2]
[347765983,1736097032664,-500.0,8.489e-05,2]
[347765986,1736097032674,-500.0,8.489e-05,2]
[347765989,1736097032684,-500.0,8.489e-05,2]
[347765992,1736097032694,-500.0,8.489e-05,2]
[347765997,1736097032708,-500.0,8.489e-05,2]
[347765999,1736097032721,-500.0,8.489e-05,2]
[347766002,1736097032735,-500.0,8.489e-05,2]
[347766004,1736097032747,-601.32,8.489e-05,2]
[347766006,1736097032759,-571.88,8.489e-05,2]
[347766008,1736097032770,-500.0,8.489e-05,2]
[347766011,1736097032781,-500.0,8.489e-05,2]
[347766013,1736097032793,-664.87,8.489e-05,2]
[347766015,1736097032804,-536.69,8.489e-05,2]
[347766017,1736097032815,-538.81,8.489e-05,2]
[347766019,1736097032827,-500.0,8.489e-05,2]
[347766022,1736097032838,-500.0,8.489e-05,2]
[347766024,1736097032851,-500.0,8.489e-05,2]
[347766026,1736097032862,-500.0,8.489e-05,2]
[347766029,1736097032875,-529.95,8.489e-05,2]
[347766031,1736097032886,-542.11,8.489e-05,2]
[347766033,1736097032897,-500.0,8.489e-05,2]
[347766035,1736097032908,-500.0,8.489e-05,2]
[347766037,1736097032918,-500.0,8.489e-05,2]
[347766039,1736097032928,-500.0,8.489e-05,2]
[347766041,1736097032939,-261.34,8.489e-05,2]
[347766043,1736097032950,-1324.92,8.489e-05,2]
[347766046,1736097032962,-500.0,8.489e-05,2]
[347766048,1736097032974,-500.0,8.489e-05,2]
[347766050,1736097032985,-500.0,8.489e-05,2]
[347766052,1736097032997,-500.0,8.489e-05,2]
[347766055,1736097033011,-500.0,8.489e-05,2]
[347766057,1736097033023,-500.0,8.489e-05,2]
[347766059,1736097033035,-500.0,8.489e-05,2]
[347766062,1736097033048,-578.14,8.489e-05,2]
[347766064,1736097033060,-500.0,8.489e-05,2]
[347766066,1736097033074,-500.0,8.489e-05,2]
[347766069,1736097033086,-500.0,8.489e-05,2]
[347766071,1736097033098,-500.0,8.489e-05,2]
[347766073,1736097033113,-633.35,8.489e-05,2]
[347766075,1736097033125,-500.0,8.489e-05,2]
[347766077,1736097033137,-578.17,8.489e-05,2]
[347766080,1736097033150,-500.0,8.489e-05,2]
[347766081,1736097033161,-500.0,8.489e-05,2]
[347766082,1736097033173,-700.08,8.489e-05,2]
[347766083,1736097033185,-500.0,8.489e-05,2]
[347766084,1736097033196,-500.0,8.489e-05,2]
[347766085,1736097033208,-500.0,8.489e-05,2]
[347766086,1736097033220,-500.0,8.489e-05,2]
[347766087,1736097033233,-794.97,8.489e-05,2]
[347766088,1736097033245,-500.0,8.489e-05,2]
[347766089,1736097033256,-500.0,8.489e-05,2]
[347766090,1736097033267,-500.0,8.489e-05,2]
[347766092,1736097033279,-599.09,8.489e-05,2]
[347766094,1736097033290,-500.0,8.489e-05,2]
[347766096,1736097033300,-500.0,8.489e-05,2]
[347766099,1736097033311,-500.0,8.489e-05,2]
[347766101,1736097033322,-500.0,8.489e-05,2]
[347766103,1736097033333,-762.48,8.489e-05,2]
[347766105,1736097033345,-500.0,8.489e-05,2]
[347766107,1736097033359,-500.0,8.489e-05,2]
[347766109,1736097033370,-508.75,8.489e-05,2]
[347766111,1736097033381,-500.0,8.489e-05,2]
[347766113,1736097033391,-500.0,8.489e-05,2]
[347766115,1736097033402,-321.16089751,8.49e-05,2]
[347766117,1736097033413,-500.0,8.49e-05,2]
[347766119,1736097033423,-500.0,8.49e-05,2]
[347766122,1736097033435,-500.0,8.49e-05,2]
[347766124,1736097033448,-500.0,8.49e-05,2]
[347766126,1736097033461,-500.0,8.49e-05,2]
[347766128,1736097033471,-500.0,8.49e-05,2]
[347766130,1736097033482,-500.0,8.49e-05,2]
[347766133,1736097033492,-500.0,8.49e-05,2]
[347766135,1736097033504,-1755.58,8.49e-05,2]
[347766137,1736097033514,-500.0,8.49e-05,2]
[347766139,1736097033525,-317.04918739,8.49e-05,2]
[347766141,1736097033536,-500.0,8.49e-05,2]
[347766143,1736097033547,-638.89,8.49e-05,2]
[347766145,1736097033558,-500.0,8.49e-05,2]
[347766147,1736097033568,-500.0,8.49e-05,7]
[347766149,1736097033578,-500.0,8.49e-05,2]
[347766152,1736097033589,-500.0,8.49e-05,2]
[347766154,1736097033604,-500.0,8.49e-05,2]
[347766156,1736097033615,-2164.95,8.49e-05,2]
[347766159,1736097033627,-500.0,8.49e-05,2]
[347766161,1736097033638,-500.0,8.49e-05,2]
[347766163,1736097033649,-500.0,8.49e-05,2]
[347766165,1736097033660,-1234.8,8.49e-05,2]
[347766167,1736097033671,-500.0,8.49e-05,2]
[347766169,1736097033682,-500.0,8.49e-05,2]
[347766171,1736097033694,-500.0,8.49e-05,2]
[347766173,1736097033704,-500.0,8.49e-05,2]
[347766176,1736097033715,-500.0,8.49e-05,2]
[347766178,1736097033726,-500.0,8.49e-05,2]
[347766180,1736097033736,-500.0,8.49e-05,2]
[347766182,1736097033747,-500.0,8.49e-05,2]
[347766184,1736097033758,-500.0,8.49e-05,2]
[347766186,1736097033770,-500.0,8.49e-05,2]
[347766188,1736097033781,-500.0,8.49e-05,2]
[347766190,1736097033792,-500.0,8.49e-05,2]
[347766192,1736097033804,-756.66,8.49e-05,2]
[347766194,1736097033816,-500.0,8.49e-05,2]
[347766196,1736097033827,-1099.05,8.49e-05,2]
[347766198,1736097033838,-500.0,8.49e-05,2]
[347766201,1736097033849,-500.0,8.49e-05,2]
[347766203,1736097033860,-500.0,8.49e-05,2]
[347766205,1736097033870,-500.0,8.49e-05,2]
[347766207,1736097033881,-500.0,8.49e-05,2]
[347766209,1736097033892,-150.0,8.49e-05,2]
[347766211,1736097033903,-500.0,8.49e-05,2]
[347766213,1736097033915,-500.0,8.49e-05,2]
[347766215,1736097033926,-500.0,8.49e-05,2]
[347766217,1736097033937,-500.0,8.49e-05,2]
[347766219,1736097033949,-500.0,8.49e-05,2]
[347766220,1736097033960,-500.0,8.49e-05,2]
[347766222,1736097033971,-500.0,8.49e-05,2]
[347766224,1736097033981,-500.0,8.49e-05,2]
[347766226,1736097033992,-500.0,8.49e-05,2]
[347766228,1736097034003,-500.0,8.49e-05,2]
[347766230,1736097034015,-500.0,8.49e-05,2]
[347766232,1736097034026,-500.0,8.49e-05,2]
[347766235,1736097034038,-500.0,8.49e-05,2]
[347766237,1736097034049,-500.0,8.49e-05,2]
[347766239,1736097034061,-562.72,8.49e-05,2]
[347766241,1736097034073,-500.0,8.49e-05,2]
[347766243,1736097034084,-500.0,8.49e-05,2]
[347766245,1736097034095,-500.0,8.49e-05,2]
[347766248,1736097034106,-536.27,8.49e-05,2]
[347766249,1736097034118,-500.0,8.49e-05,2]
[347766250,1736097034129,-500.0,8.49e-05,2]
[347766251,1736097034141,-500.0,8.49e-05,2]
[347766252,1736097034151,-993.51,8.49e-05,2]
[347766253,1736097034163,-500.0,8.49e-05,2]
[347766254,1736097034174,-500.0,8.49e-05,2]
[347766255,1736097034186,-500.0,8.49e-05,2]
[347766257,1736097034197,-500.0,8.49e-05,2]
[347766259,1736097034208,-500.0,8.49e-05,2]
[347766261,1736097034219,-500.0,8.49e-05,2]
[347766263,1736097034231,-500.0,8.49e-05,2]
[347766266,1736097034242,-500.0,8.49e-05,2]
[347766268,1736097034253,-500.0,8.49e-05,2]